[Event "GER-ch Youth-U18w 2022"]
[Site "Willingen"]
[Date "2022.06.05"]
[Round "2.10"]
[White "Wilmink, Anna"]
[Black "Sokyrko, Sofiia"]
[Result "0-1"]
[ECO "C40"]
[WhiteElo "1700"]
[BlackElo "1368"]
[Annotator "NA RC COMBH"]
[PlyCount "248"]
[EventDate "2022.06.05"]
[EventType "swiss"]
[EventRounds "9"]
[EventCountry "GER"]
[SourceTitle "playchess.com"]
[Source "ChessBase"]
[SourceQuality "1"]
[TimeControl "40/4500+30:900+30"]

1. e4 {[%emt 0:00:00]} e5 {[%emt 0:00:00]} 2. Nf3 {[%emt 0:00:00]} d5 {[%emt 0:00:00]} 3. exd5 {[%emt 0:00:00]} e4 {[%emt 0:00:00]} 4. Nd4 {[%emt 0:00:00]} Qxd5 {[%emt 0:00:00]} 5. Nb5 {[%emt 0:00:00]} Qd8 {[%emt 0:00:00]} 6. d4 {[%emt 0:00:00]} a6 {[%emt 0:00:00]} 7. N5c3 {[%emt 0:00:00]} Nf6 {[%emt 0:00:00]} 8. Bg5 {[%emt 0:00:00]} Be7 {[%emt 0:00:00]} 9. Be2 {[%emt 0:02:32]} O-O {[%emt 0:00:00]} 10. O-O {[%emt 0:01:06]} Bf5 {[%emt 0:00:00]} 11. Be3 {[%emt 0:03:19]} Nc6 {[%emt 0:00:00]} 12. d5 {[%emt 0:04:41]} Ne5 {[%emt 0:00:00]} 13. Bf4 {[%emt 0:03:34]} Ng6 {[%emt 0:00:22]} 14. Bg3 {[%emt 0:01:29]} Bd6 {[%emt 0:01:02]} 15. a4 {[%emt 0:10:35]} Bxg3 {[%emt 0:00:52]} 16. fxg3 {[%emt 0:03:09]} Ne7 {[%emt 0:04:24]} 17. g4 {[%emt 0:04:10]} Bg6 {[%emt 0:00:35]} 18. Bc4 {[%emt 0:01:26]} Qd6 {[%emt 0:01:00]} 19. g5 {[%emt 0:04:34]} Bh5 {[%emt 0:01:04]} 20. Qd2 {[%emt 0:13:35]} Ng4 {[%emt 0:00:33]} 21. Qf4 {[%emt 0:01:18]} Qc5+ {[%emt 0:00:16]} 22. Kh1 {[%emt 0:01:41]} Qxc4 {[%emt 0:00:39]} 23. h3 {[%emt 0:00:39]} Ng6 {[%emt 0:00:27]} 24. Qc1 {[%emt 0:00:19]} N4e5 {[%emt 0:01:08]} 25. g4 {[%emt 0:01:41]} Nxg4 {[%emt 0:00:46]} 26. hxg4 {[%emt 0:00:44]} Bxg4 {[%emt 0:00:08]} 27. Nd2 {[%emt 0:00:53]} Qd4 {[%emt 0:00:42]} 28. Ndxe4 {[%emt 0:01:34]} Nh4 {[%emt 0:00:36]} 29. Qf4 {[%emt 0:02:32]} Bf3+ {[%emt 0:00:48]} 30. Rxf3 {[%emt 0:02:27]} Nxf3 {[%emt 0:00:08]} 31. Qxf3 {[%emt 0:00:16]} b5 {[%emt 0:01:00]} 32. Qg4 {[%emt 0:04:45]} Kh8 {[%emt 0:01:00]} 33. Rd1 {[%emt 0:03:39]} Qb4 {[%emt 0:00:28]} 34. b3 {[%emt 0:02:01]} bxa4 {[%emt 0:00:29]} 35. Nxa4 {[%emt 0:01:18]} Rae8 {[%emt 0:01:00]} 36. Nf2 {[%emt 0:01:38]} Re1+ {[%emt 0:00:33]} 37. Rxe1 {[%emt 0:00:16]} Qxe1+ {[%emt 0:00:06]} 38. Kg2 {[%emt 0:00:57]} f6 {[%emt 0:00:08]} 39. g6 {[%emt 0:00:51]} h6 {[%emt 0:00:50]} 40. Nc5 {[%emt 0:03:03]} f5 {[%emt 0:01:25]} 41. Qf4 {[%emt 0:17:08]} Rf6 {[%emt 0:16:09]} 42. Qg3 {[%emt 0:04:49]} f4 {[%emt 0:00:44]} 43. Qg4 {[%emt 0:01:19]} f3+ {[%emt 0:00:20]} 44. Kg3 {[%emt 0:01:18]} Rxg6 {[%emt 0:00:11]} 45. Qxg6 {[%emt 0:00:00]} Qg1+ {[%emt 0:00:00]} 46. Kxf3 {[%emt 0:00:00]} Qxg6 {[%emt 0:00:00]} 47. c4 {[%emt 0:00:00]} Qf5+ {[%emt 0:00:00]} 48. Ke3 {[%emt 0:00:00]} Qe5+ {[%emt 0:00:00]} 49. Kd3 {[%emt 0:00:00]} Qg3+ {[%emt 0:00:00]} 50. Ke2 {[%emt 0:00:00]} Qe5+ {[%emt 0:00:00]} 51. Kd3 {[%emt 0:00:00]} c6 {[%emt 0:00:00]} 52. Nxa6 {[%emt 0:00:00]} cxd5 {[%emt 0:00:00]} 53. c5 {[%emt 0:00:00]} Qf5+ {[%emt 0:00:00]} 54. Ke3 {[%emt 0:00:00]} Qe6+ {[%emt 0:00:00]} 55. Kd4 {[%emt 0:00:00]} Qxa6 {[%emt 0:00:00]} 56. Kxd5 {[%emt 0:00:00]} Qa8+ {[%emt 0:00:00]} 57. c6 {[%emt 0:00:00]} Qd8+ {[%emt 0:00:00]} 58. Ke6 {[%emt 0:00:00]} Qc7 {[%emt 0:00:00]} 59. Kd5 {[%emt 0:00:00]} Qf7+ {[%emt 0:00:00]} 60. Kd6 {[%emt 0:00:00]} Qxf2 {[%emt 0:00:00]} 61. c7 {[%emt 0:00:00]} Qb6+ {[%emt 0:00:00]} 62. Kd7 {[%emt 0:00:00]} Qxb3 {[%emt 0:00:00]} 63. c8=Q+ {[%emt 0:00:00]} Qg8 {[%emt 0:00:00]} 64. Qc2 {[%emt 0:00:00]} Qf7+ {[%emt 0:00:00]} 65. Kd6 {[%emt 0:00:00]} Qf4+ {[%emt 0:00:00]} 66. Ke6 {[%emt 0:00:00]} Qg4+ {[%emt 0:00:00]} 67. Kf7 {[%emt 0:00:00]} h5 {[%emt 0:00:00]} 68. Qd3 {[%emt 0:00:00]} Qf4+ {[%emt 0:00:00]} 69. Kg6 {[%emt 0:00:00]} Qg4+ {[%emt 0:00:00]} 70. Kf7 {[%emt 0:00:00]} Qf4+ {[%emt 0:00:00]} 71. Kg6 {[%emt 0:00:00]} Qh6+ {[%emt 0:00:00]} 72. Kf7 {[%emt 0:00:00]} Qf6+ {[%emt 0:00:00]} 73. Ke8 {[%emt 0:00:00]} h4 {[%emt 0:00:00]} 74. Qh3 {[%emt 0:00:00]} Qg6+ {[%emt 0:00:00]} 75. Ke7 {[%emt 0:00:00]} Qg3 {[%emt 0:00:00]} 76. Qc8+ {[%emt 0:00:00]} Kh7 {[%emt 0:00:00]} 77. Qf5+ {[%emt 0:00:00]} Qg6 {[%emt 0:00:00]} 78. Qh3 {[%emt 0:00:00]} Qf6+ {[%emt 0:00:00]} 79. Ke8 {[%emt 0:00:00]} g5 {[%emt 0:00:00]} 80. Qg4 {[%emt 0:00:00]} Qc6+ {[%emt 0:00:00]} 81. Kf7 {[%emt 0:00:00]} Qg6+ {[%emt 0:00:00]} 82. Ke7 {[%emt 0:00:00]} Kh6 {[%emt 0:00:00]} 83. Kf8 {[%emt 0:00:12]} Qf6+ {[%emt 0:00:00]} 84. Ke8 {[%emt 0:00:14]} Qf4 {[%emt 0:00:00]} 85. Qe6+ {[%emt 0:00:12]} Kh5 {[%emt 0:00:00]} 86. Qe2+ {[%emt 0:00:32]} g4 {[%emt 0:00:00]} 87. Kd7 {[%emt 0:01:10]} h3 {[%emt 0:00:00]} 88. Qe8+ {[%emt 0:00:17]} Kh4 {[%emt 0:00:00]} 89. Qe7+ {[%emt 0:00:51]} Kg3 {[%emt 0:00:00]} 90. Qe1+ {[%emt 0:00:21]} Qf2 {[%emt 0:00:00]} 91. Qe5+ {[%emt 0:00:29]} Kg2 {[%emt 0:00:00]} 92. Qe4+ {[%emt 0:00:19]} Qf3 {[%emt 0:00:00]} 93. Qc2+ {[%emt 0:00:11]} Kf1 {[%emt 0:00:00]} 94. Qc1+ {[%emt 0:00:28]} Kg2 {[%emt 0:00:00]} 95. Qd2+ {[%emt 0:00:28]} Kg3 {[%emt 0:00:00]} 96. Qd6+ {[%emt 0:00:47]} Qf4 {[%emt 0:00:00]} 97. Qd3+ {[%emt 0:00:18]} Kh4 {[%emt 0:00:00]} 98. Qh7+ {[%emt 0:00:08]} Kg5 {[%emt 0:00:00]} 99. Qg7+ {[%emt 0:00:23]} Kf5 {[%emt 0:00:00]} 100. Qf7+ {[%emt 0:00:26]} Ke4 {[%emt 0:00:00]} 101. Qc4+ {[%emt 0:00:26]} Kf3 {[%emt 0:00:00]} 102. Qf1+ {[%emt 0:00:40]} Kg3 {[%emt 0:00:00]} 103. Qe1+ {[%emt 0:00:21]} Kg2 {[%emt 0:00:00]} 104. Qe2+ {[%emt 0:00:21]} Qf2 {[%emt 0:00:00]} 105. Qe4+ {[%emt 0:00:15]} Kh2 {[%emt 0:00:00]} 106. Qxg4 {[%emt 0:00:54]} Qa7+ {[%emt 0:00:00]} 107. Kc6 {[%emt 0:00:47]} Qa8+ {[%emt 0:00:00]} 108. Kc7 {[%emt 0:00:59]} Qg2 {[%emt 0:00:00]} 109. Qd1 {[%emt 0:01:15]} Qg3+ {[%emt 0:00:00]} 110. Kc8 {[%emt 0:00:38]} Qg8+ {[%emt 0:00:00]} 111. Kb7 {[%emt 0:00:57]} Qf7+ {[%emt 0:00:00]} 112. Kc8 {[%emt 0:00:23]} Qf5+ {[%emt 0:00:00]} 113. Kc7 {[%emt 0:00:39]} Qf4+ {[%emt 0:00:00]} 114. Kc8 {[%emt 0:00:23]} Kg3 {[%emt 0:00:00]} 115. Qg1+ {[%emt 0:01:18]} Kh4 {[%emt 0:00:00]} 116. Qe1+ {[%emt 0:00:12]} Kg5 {[%emt 0:00:00]} 117. Qe7+ {[%emt 0:00:14]} Kg4 {[%emt 0:00:36]} 118. Qg7+ {[%emt 0:00:56]} Kh5 {[%emt 0:00:21]} 119. Qh8+ {[%emt 0:00:39]} Qh6 {[%emt 0:00:12]} 120. Qe5+ {[%emt 0:00:19]} Kg6 {[%emt 0:00:13]} 121. Qe8+ {[%emt 0:01:36]} Kg7 {[%emt 0:00:08]} 122. Qe7+ {[%emt 0:00:25]} Kg8 {[%emt 0:00:31]} 123. Qe5 {[%emt 0:01:01]} Qf8+ {[%emt 0:00:20]} 124. Kd7 {[%emt 0:00:15]} Qg7+ {[%emt 0:00:05]} 0-1

[Event "GER-ch Youth-U18w 2022"]
[Site "Willingen"]
[Date "2022.06.05"]
[Round "2.11"]
[White "Kieckbusch, Lotta"]
[Black "Gröschel, Karoline"]
[Result "0-1"]
[ECO "A45"]
[WhiteElo "1207"]
[BlackElo "1546"]
[Annotator "NA RC COMBH"]
[PlyCount "68"]
[EventDate "2022.06.05"]
[EventType "swiss"]
[EventRounds "9"]
[EventCountry "GER"]
[SourceTitle "playchess.com"]
[Source "ChessBase"]
[SourceQuality "1"]
[TimeControl "40/4500+30:900+30"]

1. d4 {[%emt 0:00:00]} Nf6 {[%emt 0:00:00]} 2. g3 {[%emt 0:00:00]} d5 {[%emt 0:00:00]} 3. Bg2 {[%emt 0:00:00]} Bf5 {[%emt 0:00:00]} 4. Nf3 {[%emt 0:00:00]} e6 {[%emt 0:00:00]} 5. O-O {[%emt 0:00:00]} Bd6 {[%emt 0:00:00]} 6. c4 {[%emt 0:00:00]} c6 {[%emt 0:00:00]} 7. b3 {[%emt 0:00:00]} h6 {[%emt 0:00:00]} 8. Bb2 {[%emt 0:00:00]} O-O {[%emt 0:00:00]} 9. Nc3 {[%emt 0:00:00]} Nbd7 {[%emt 0:00:00]} 10. Re1 {[%emt 0:00:00]} Re8 {[%emt 0:06:45]} 11. Nd2 {[%emt 0:00:02]} Bb4 {[%emt 0:07:40]} 12. e4 {[%emt 0:12:05]} dxe4 {[%emt 0:00:40]} 13. Ndxe4 {[%emt 0:01:14]} Qa5 {[%emt 0:11:04]} 14. Nxf6+ {[%emt 0:06:41]} Nxf6 {[%emt 0:00:10]} 15. Re5 {[%emt 0:07:04]} Qc7 {[%emt 0:04:14]} 16. h3 {[%emt 0:10:18]} Rad8 {[%emt 0:01:33]} 17. Re3 {[%emt 0:11:09]} Rd7 {[%emt 0:04:07]} 18. Qe2 {[%emt 0:09:06]} Red8 {[%emt 0:03:35]} 19. Rd1 {[%emt 0:01:39]} Qb6 {[%emt 0:05:50]} 20. Ne4 {[%emt 0:04:44]} Bxe4 {[%emt 0:08:55]} 21. Bxe4 {[%emt 0:02:09]} Bc5 {[%emt 0:00:52]} 22. dxc5 {[%emt 0:07:30]} Rxd1+ {[%emt 0:00:14]} 23. Kg2 {[%emt 0:00:22]} Qxc5 {[%emt 0:00:52]} 24. Bxf6 {[%emt 0:01:29]} gxf6 {[%emt 0:00:24]} 25. Qf3 {[%emt 0:02:03]} f5 {[%emt 0:05:26]} 26. Bd5 {[%emt 0:07:36]} Rd2 {[%emt 0:07:13]} 27. Bxe6 {[%emt 0:02:23]} fxe6 {[%emt 0:01:04]} 28. Rxe6 {[%emt 0:00:18]} R2d6 {[%emt 0:02:42]} 29. Re7 {[%emt 0:00:43]} R8d7 {[%emt 0:01:19]} 30. Re8+ {[%emt 0:01:03]} Kg7 {[%emt 0:01:23]} 31. Qf4 {[%emt 0:00:41]} b5 {[%emt 0:02:52]} 32. Re5 {[%emt 0:00:05]} Qd4 {[%emt 0:01:17]} 33. Qxf5 {[%emt 0:00:18]} Rf7 {[%emt 0:00:31]} 34. Qg4+ {[%emt 0:01:05]} Qxg4 {[%emt 0:00:11]} 0-1

[Event "GER-ch Youth-U18w 2022"]
[Site "Willingen"]
[Date "2022.06.06"]
[Round "3.1"]
[White "Goetten Wagner, Julia"]
[Black "Falke, Ornella"]
[Result "1/2-1/2"]
[ECO "B17"]
[WhiteElo "1631"]
[BlackElo "1844"]
[Annotator "NA RC COMBH"]
[PlyCount "97"]
[EventDate "2022.06.05"]
[EventType "swiss"]
[EventRounds "9"]
[EventCountry "GER"]
[SourceTitle "playchess.com"]
[Source "ChessBase"]
[SourceQuality "1"]
[TimeControl "40/4500+30:900+30"]

1. e4 {[%emt 0:00:00]} c6 {[%emt 0:00:00]} 2. d4 {[%emt 0:00:00]} d5 {[%emt 0:00:00]} 3. Nd2 {[%emt 0:00:00]} dxe4 {[%emt 0:00:00]} 4. Nxe4 {[%emt 0:00:00]} Nd7 {[%emt 0:00:00]} 5. Nf3 {[%emt 0:00:00]} Ngf6 {[%emt 0:00:00]} 6. Nxf6+ {[%emt 0:00:00]} Nxf6 {[%emt 0:00:00]} 7. Bd3 {[%emt 0:00:00]} Bg4 {[%emt 0:00:00]} 8. c3 {[%emt 0:00:00]} e6 {[%emt 0:00:00]} 9. h3 {[%emt 0:00:00]} Bh5 {[%emt 0:00:00]} 10. g4 {[%emt 0:00:00]} Bg6 {[%emt 0:00:00]} 11. Bf4 {[%emt 0:00:00]} Nd5 {[%emt 0:00:00]} 12. Bg3 {[%emt 0:03:22]} Bd6 {[%emt 0:00:00]} 13. Ne5 {[%emt 0:02:00]} Bxd3 {[%emt 0:05:30]} 14. Nxd3 {[%emt 0:03:43]} Bxg3 {[%emt 0:02:25]} 15. fxg3 {[%emt 0:00:08]} Qg5 {[%emt 0:17:49]} 16. Qd2 {[%emt 0:10:36]} h6 {[%emt 0:04:14]} 17. Qxg5 {[%emt 0:09:39]} hxg5 {[%emt 0:00:03]} 18. O-O-O {[%emt 0:00:22]} Ke7 {[%emt 0:03:01]} 19. Ne5 {[%emt 0:01:54]} Rh6 {[%emt 0:01:41]} 20. h4 {[%emt 0:11:01]} f6 {[%emt 0:03:43]} 21. Nf3 {[%emt 0:03:52]} Rah8 $11 {[%emt 0:05:08]} (21... Ne3 $5 {[%cal Re3d1]}) 22. Rhe1 {[%emt 0:03:21]} gxh4 {[%emt 0:02:13]} 23. gxh4 {[%emt 0:02:34]} b5 {[%emt 0:12:03]} 24. Re4 {[%emt 0:04:44]} Kd6 {[%emt 0:13:55]} 25. Rde1 {[%emt 0:06:30]} f5 {[%emt 0:01:14]} 26. gxf5 {[%emt 0:00:50]} exf5 {[%emt 0:00:05]} 27. Re5 {[%emt 0:01:18]} Nf4 {[%emt 0:02:04]} 28. Kd2 {[%emt 0:04:42]} Ng2 {[%emt 0:02:32]} 29. R1e2 {[%emt 0:05:29]} Nxh4 {[%emt 0:00:24]} 30. Nxh4 {[%emt 0:00:05]} Rxh4 {[%emt 0:00:03]} 31. Rxf5 {[%emt 0:00:17]} Rh2 {[%emt 0:01:08]} 32. Rff2 {[%emt 0:01:22]} Rxf2 {[%emt 0:01:22]} 33. Rxf2 {[%emt 0:00:04]} g5 {[%emt 0:03:09]} 34. Rf6+ {[%emt 0:02:01]} Kc7 {[%emt 0:02:16]} 35. Rf7+ {[%emt 0:03:09]} Kb6 {[%emt 0:00:12]} 36. Rg7 {[%emt 0:00:20]} Rh2+ {[%emt 0:00:09]} 37. Kc1 {[%emt 0:00:14]} Rg2 {[%emt 0:00:12]} 38. b4 {[%emt 0:01:24]} g4 {[%emt 0:02:07]} 39. Kd1 {[%emt 0:03:05]} Rg3 {[%emt 0:02:01]} 40. Kd2 {[%emt 0:01:01]} Rg2+ {[%emt 0:00:21]} 41. Ke3 {[%emt 0:20:40]} Rg1 {[%emt 0:00:00]} 42. Rg6 {[%emt 0:00:00]} Kc7 {[%emt 0:06:12]} 43. Rg7+ {[%emt 0:00:00]} Kb6 {[%emt 0:01:12]} 44. Rg6 {[%emt 0:00:00]} Rg3+ {[%emt 0:01:16]} 45. Kd2 {[%emt 0:00:00]} Rg2+ {[%emt 0:00:32]} 46. Kd3 {[%emt 0:00:00]} Rg3+ {[%emt 0:03:21]} 47. Kd2 {[%emt 0:00:00]} Rg2+ {[%emt 0:01:44]} 48. Kd3 {[%emt 0:00:00]} Rg3+ {[%emt 0:01:48]} 49. Ke4 1/2-1/2

[Event "GER-ch Youth-U18w 2022"]
[Site "Willingen"]
[Date "2022.06.06"]
[Round "3.2"]
[White "Bardorz, Jana"]
[Black "Yue, Qizhou"]
[Result "1-0"]
[ECO "B47"]
[WhiteElo "1974"]
[BlackElo "1715"]
[Annotator "TA"]
[PlyCount "89"]
[EventDate "2022.06.05"]
[EventType "swiss"]
[EventRounds "9"]
[EventCountry "GER"]
[SourceTitle "playchess.com"]
[Source "ChessBase"]
[SourceQuality "1"]
[TimeControl "40/4500+30:900+30"]

{[%evp 14,89,53,27,45,45,43,50,65,70,76,76,108,110,113,100,116,103,101,61,72,79,94,95,84,88,122,14,33,33,57,64,60,40,38,0,0,-82,9,18,108,0,265,250,224,6,18,0,0,0,0,0,0,-14,44,33,184,200,191,200,195,191,184,140,210,175,210,169,355,378,437,425,464,464,1804,1650,29993,29994]} 1. e4 {[%emt 0:00:00]} c5 {[%emt 0:00:00]} 2. Nf3 {[%emt 0:00:00]} e6 {[%emt 0:00:00]} 3. d4 {[%emt 0:00:00]} cxd4 {[%emt 0:00:00]} 4. Nxd4 {[%emt 0:00:00]} Nc6 {[%emt 0:00:00]} 5. Nc3 {[%emt 0:00:00]} Qc7 {[%emt 0:00:00]} 6. f4 {[%emt 0:00:00]} a6 {[%emt 0:00:00]} 7. Nxc6 {[%emt 0:00:00]} Qxc6 {[%emt 0:00:00]} 8. Bd3 {[%emt 0:00:00]} Nf6 {[%emt 0:03:24] B47: Sicilian: Taimanov: 5 Nc3 Qc7 6 f4, 6 g3 and 6 Be2.} 9. Qe2 {[%emt 0:00:00]} Bb4 {[%emt 0:04:57]} 10. Bd2 {[%emt 0:00:00]} b5 {[%emt 0:08:43] White is slightly better.} 11. O-O-O {[%emt 0:00:00]} Bb7 {[%emt 0:03:37]} 12. Rhe1 {[%emt 0:13:32] [#]} Rc8 $146 {[%emt 0:10:03]} ({Predecessor:} 12... Be7 13. a3 b4 14. axb4 Bxb4 15. Kb1 O-O 16. g4 d5 17. e5 d4 18. Ne4 Nxe4 19. Bxe4 {1-0 (51) Souleidis,G (2430)-Woelk,T (2315) Hamburg 2022}) 13. g4 {[%emt 0:07:53][%cal Bg2g4,Bg4g5][%mdl 32]} O-O {[%emt 0:19:01]} 14. g5 {[%emt 0:08:34]} Ne8 {[%emt 0:00:30]} 15. a3 {[%emt 0:05:42]} Bc5 {[%emt 0:08:08]} 16. Qh5 {[%emt 0:07:03]} f6 {[%emt 0:08:40]} 17. g6 {[%emt 0:06:07]} (17. e5 $6 f5 $11) 17... hxg6 {[%emt 0:01:04]} 18. Qxg6 {[%emt 0:00:25]} f5 {[%emt 0:02:51]} 19. Qg5 {[%emt 0:09:17][%cal Re4f5] White is more active.} Nd6 {[%emt 0:03:23]} 20. Be3 {[%emt 0:03:55] Inhibits Bf2.} ({White must play} 20. exf5 $1 $16 exf5 21. Be3 (21. Re7 Nf7 $14)) 20... Nxe4 {[%emt 0:03:37]} 21. Bxe4 {[%emt 0:03:31]} Bxe3+ {[%emt 0:00:50]} 22. Rxe3 {[%emt 0:00:06]} fxe4 {[%emt 0:00:18]} 23. Rg1 {[%emt 0:03:42][%csl Gg1][%cal Rg5g7]} (23. Rg3 $5 {[%cal Rg5g7]} Rf7 24. Qh6 $11) 23... Rf7 {[%emt 0:00:11]} 24. Rh3 {[%emt 0:02:48][%mdl 1024] White has compensation.} (24. Reg3 $5 {[%cal Rg5h6]} Qc5 25. Qh6 $11) 24... Qc5 {...Qxg5 is the strong threat.} 25. Qg3 {[%emt 0:05:32]} ({But not} 25. Qg6 Qf5 26. Qxf5 Rxf5 $17) (25. Qg2 $1 $11 {keeps the balance.}) 25... Qf5 {[%emt 0:02:39]} (25... a5 $1 $17 {Hoping for ...b4.} 26. Qg6 Qf2) 26. Rh4 $11 {[%emt 0:01:50]} a5 {[%emt 0:00:54] [#]} (26... Kf8 $11) 27. Rg4 {[%emt 0:00:51]} (27. Nd1 $1 $16) 27... Qf6 $2 {[%emt 0:00:48][%mdl 8192]} (27... Kf8 $1 $11 {and Black is okay.}) 28. Nxb5 $18 {[%emt 0:01:42]} Rc6 {[%emt 0:00:46] [#] Against Nd6} 29. c3 $2 {[%emt 0:02:12]} ({White should play} 29. Kb1 $1 $18) 29... Ba6 $1 $11 {[%emt 0:01:06]} 30. Rg6 {[%emt 0:01:07]} Qxf4+ {[%emt 0:01:02]} 31. Qxf4 {[%emt 0:00:19]} Rxf4 {[%emt 0:00:05]} 32. Rxg7+ {[%emt 0:00:34]} Kf8 {[%emt 0:00:23]} 33. Nd4 {[%emt 0:00:52]} Rd6 {[%emt 0:01:17]} (33... Rf1+ $2 34. Rxf1+ Bxf1 35. Rg1 $18 (35. Nxc6 Kxg7 36. Nxa5 Kf7 $18) (35. Rxd7 Ra6 $16)) (33... Rb6 $1 $11) 34. Rxd7 $14 {[%emt 0:02:21]} Rxd7 {[%emt 0:01:11] This move loses the game for Black.} ({Black should try} 34... Rb6 $1 $14) 35. Nxe6+ $18 {[%emt 0:00:06]} Ke8 {[%emt 0:00:53]} 36. Nxf4 {[%emt 0:00:12][%mdl 4096] Endgame KRB-KRN} Rf7 {[%emt 0:01:28]} 37. Nd5 {[%emt 0:01:20]} Bb7 {[%emt 0:00:56]} 38. c4 {[%emt 0:01:06]} Rf2 {[%emt 0:01:02]} (38... Bxd5 $16 {keeps fighting.} 39. cxd5 Kd7) 39. h4 {[%emt 0:01:13][%cal Bh2h4,Bh4h5,Bh5h6][%mdl 32]} Rh2 {[%emt 0:00:24]} 40. Rg4 {[%emt 0:00:29]} Re2 $2 {[%emt 0:00:46]} (40... Bxd5 41. cxd5 e3 42. Re4+ Kd7 43. Rxe3 Kd6) 41. h5 {[%emt 0:00:00] aiming for Rh4.} Kf8 {[%emt 0:00:00]} 42. h6 {[%emt 0:00:00]} Rh2 {[%emt 0:00:00]} 43. Rf4+ {[%emt 0:00:00]} Kg8 {[%emt 0:00:00]} (43... Ke8 $142 44. Rxe4+ Kd8) 44. Nf6+ {[%emt 0:00:00]} Kh8 {[%emt 0:00:00]} 45. Rg4 {[%emt 0:00:00] Weighted Error Value: White=0.30/Black=0.56} 1-0

[Event "GER-ch Youth-U18w 2022"]
[Site "Willingen"]
[Date "2022.06.06"]
[Round "3.3"]
[White "Rudolph, Eva"]
[Black "Albayrak, Nese Pinar"]
[Result "1-0"]
[ECO "B01"]
[WhiteElo "1860"]
[BlackElo "1683"]
[Annotator "NA RC COMBH"]
[PlyCount "149"]
[EventDate "2022.06.05"]
[EventType "swiss"]
[EventRounds "9"]
[EventCountry "GER"]
[SourceTitle "playchess.com"]
[Source "ChessBase"]
[SourceQuality "1"]
[TimeControl "40/4500+30:900+30"]

1. e4 {[%emt 0:00:00]} d5 {[%emt 0:00:00]} 2. exd5 {[%emt 0:00:00]} Qxd5 {[%emt 0:00:00]} 3. Nc3 {[%emt 0:00:00]} Qd6 {[%emt 0:00:00]} 4. d4 {[%emt 0:00:00]} Nf6 {[%emt 0:00:00]} 5. Bd3 {[%emt 0:00:00]} a6 {[%emt 0:00:00]} 6. a4 {[%emt 0:11:40]} e6 {[%emt 0:00:00]} 7. Nf3 {[%emt 0:01:41]} Be7 {[%emt 0:00:00]} 8. O-O {[%emt 0:00:37]} O-O {[%emt 0:00:00]} 9. Ne5 {[%emt 0:03:46]} Kh8 {[%emt 0:06:31]} 10. Ne2 {[%emt 0:07:16]} Nh5 {[%emt 0:22:57]} 11. c3 {[%emt 0:05:11]} Nd7 {[%emt 0:14:03]} 12. Nf4 {[%emt 0:03:19]} Nhf6 {[%emt 0:01:52]} 13. Re1 {[%emt 0:05:31]} c5 {[%emt 0:02:59]} 14. Nc4 {[%emt 0:19:33]} Qc6 {[%emt 0:07:31]} 15. Ne5 {[%emt 0:00:27]} Qd6 {[%emt 0:02:26]} 16. Nc4 {[%emt 0:00:26]} Qc6 {[%emt 0:00:33]} 17. a5 {[%emt 0:00:20]} cxd4 {[%emt 0:00:56]} 18. cxd4 {[%emt 0:00:45]} b5 {[%emt 0:01:21]} 19. axb6 {[%emt 0:01:28]} Nxb6 {[%emt 0:03:40]} 20. Ne5 {[%emt 0:00:58]} Qd6 {[%emt 0:05:03]} 21. Bc2 {[%emt 0:06:11]} Bb7 {[%emt 0:01:54]} 22. Nh5 {[%emt 0:02:39]} Qd5 {[%emt 0:02:28]} 23. Nf4 {[%emt 0:00:19]} Qd6 {[%emt 0:02:03]} 24. Be3 {[%emt 0:02:30]} Rac8 {[%emt 0:02:04]} 25. Nfd3 {[%emt 0:02:26]} Nc4 {[%emt 0:05:52]} 26. Nxc4 {[%emt 0:02:19]} Rxc4 {[%emt 0:00:03]} 27. Ne5 {[%emt 0:02:55]} Qd5 {[%emt 0:00:46]} 28. f3 {[%emt 0:00:10]} Rc7 {[%emt 0:00:56]} 29. Bf2 {[%emt 0:02:59]} Bd6 {[%emt 0:02:14]} 30. Bb3 {[%emt 0:02:31]} Qb5 {[%emt 0:00:08]} 31. Re2 {[%emt 0:00:54]} Rd8 {[%emt 0:01:49]} 32. Ba4 {[%emt 0:00:33]} Qd5 {[%emt 0:00:22]} 33. Bb3 {[%emt 0:00:43]} Qb5 {[%emt 0:00:14]} 34. Ba4 {[%emt 0:00:07]} Qd5 {[%emt 0:00:25]} 35. Qe1 {[%emt 0:00:50]} a5 {[%emt 0:00:55]} 36. Rc1 {[%emt 0:00:47]} Bb4 37. Qd1 {[%emt 0:00:42]} Rdc8 {[%emt 0:01:18]} 38. Rec2 {[%emt 0:00:34]} Qd6 {[%emt 0:00:34]} 39. Nxf7+ {[%emt 0:01:03]} Rxf7 {[%emt 0:00:03]} 40. Rxc8+ {[%emt 0:00:10]} Bxc8 {[%emt 0:00:01]} 41. Rxc8+ {[%emt 0:15:30]} Rf8 {[%emt 0:15:57]} 42. Qc2 {[%emt 0:00:00]} Nd5 {[%emt 0:00:00]} 43. Bg3 {[%emt 0:00:00]} Nf4 {[%emt 0:00:00]} 44. Rxf8+ {[%emt 0:00:00]} Qxf8 {[%emt 0:00:00]} 45. Qe4 {[%emt 0:00:00]} Bd6 {[%emt 0:00:00]} 46. Bc2 {[%emt 0:00:00]} g6 {[%emt 0:00:00]} 47. Bb3 {[%emt 0:00:00]} Qf5 {[%emt 0:00:00] [#]} 48. Bxe6 $1 {[%emt 0:00:39]} Qxe4 {[%emt 0:00:00]} 49. fxe4 {[%emt 0:00:03]} Ne2+ {[%emt 0:00:52]} 50. Kf2 {[%emt 0:00:10]} Nxg3 {[%emt 0:00:16]} 51. hxg3 {[%emt 0:00:07]} Kg7 {[%emt 0:00:10]} 52. e5 {[%emt 0:00:39]} Bb4 {[%emt 0:01:35]} 53. Ke3 {[%emt 0:00:13]} h6 {[%emt 0:00:44]} 54. Ke4 {[%emt 0:00:46]} Kf8 {[%emt 0:00:30]} 55. g4 {[%emt 0:01:17]} Ke7 {[%emt 0:00:54]} 56. Bc4 {[%emt 0:00:30]} Bd2 {[%emt 0:00:13]} 57. d5 {[%emt 0:00:52]} Bc1 {[%emt 0:00:29]} 58. b3 {[%emt 0:00:24]} Bb2 {[%emt 0:00:49]} 59. d6+ {[%emt 0:00:27]} Kd8 {[%emt 0:02:54]} 60. Kd5 {[%emt 0:00:22]} Ke8 {[%emt 0:00:23]} 61. Bb5+ {[%emt 0:01:22]} Kd8 {[%emt 0:00:37]} 62. e6 {[%emt 0:00:35]} Bf6 {[%emt 0:00:26]} 63. Kc6 {[%emt 0:01:45]} Bg5 {[%emt 0:00:30]} 64. e7+ {[%emt 0:00:23]} Bxe7 {[%emt 0:00:16]} 65. dxe7+ {[%emt 0:00:04]} Kxe7 {[%emt 0:00:04]} 66. Kb6 {[%emt 0:00:12]} Kd8 {[%emt 0:00:17]} 67. Kxa5 {[%emt 0:00:12]} Kc7 {[%emt 0:00:04]} 68. Be8 {[%emt 0:00:13]} g5 {[%emt 0:00:13]} 69. b4 {[%emt 0:00:08]} Kb7 {[%emt 0:00:26]} 70. b5 {[%emt 0:00:21]} Kc7 {[%emt 0:00:21]} 71. Ka6 {[%emt 0:00:30]} Kb8 {[%emt 0:00:03]} 72. b6 {[%emt 0:00:12]} Ka8 {[%emt 0:00:10]} 73. b7+ {[%emt 0:00:17]} Kb8 {[%emt 0:00:06]} 74. Bg6 {[%emt 0:00:15]} Kc7 {[%emt 0:00:10]} 75. Ka7 {[%emt 0:00:04]} 1-0